[Event "87th Spanish Championship 2022"]
[Site "Linares"]
[Date "2022.08.12"]
[Round "2.4"]
[White "Domingo Nunez, Alejandro"]
[Black "Yuffa, Daniil"]
[Result "0-1"]
[ECO "B90"]
[WhiteElo "2335"]
[BlackElo "2603"]
[Annotator "TA"]
[PlyCount "92"]
[EventDate "2022.08.11"]
[EventType "swiss"]
[EventCountry "ESP"]
[SourceTitle "playchess.com"]
[Source "ChessBase"]
[SourceQuality "1"]
[TimeControl "5400+30"]

{[%evp 17,92,34,30,31,21,26,31,19,19,24,26,16,16,0,13,8,0,12,44,37,39,34,41,52,64,35,31,18,58,46,37,30,36,0,0,-153,-42,-127,-110,-146,-115,-145,-23,-41,-39,-20,-16,-148,-29,-18,-7,-134,-108,-99,-110,-114,-84,-116,-122,-239,-243,-253,-260,-479,-472,-493,-493,-486,-479,-473,-472,-29985,-29981,-29987,-547,-29996,-29997]} 1. e4 {[%emt 0:01:28]} c5 {[%emt 0:00:21]} 2. Nf3 {[%emt 0:00:05]} d6 {[%emt 0:00:17]} 3. d4 {[%emt 0:00:07]} cxd4 {[%emt 0:00:11]} 4. Nxd4 {[%emt 0:00:03]} Nf6 {[%emt 0:00:12]} 5. Nc3 {[%emt 0:00:03]} a6 {[%emt 0:00:54]} 6. f3 {[%emt 0:00:15]} e5 {[%emt 0:00:30]} 7. Nb3 {[%emt 0:00:02]} Be6 {[%emt 0:00:15]} 8. Be3 {[%emt 0:00:03]} h5 {[%emt 0:00:19]} 9. Qd2 {[%emt 0:00:03]} Nbd7 {[%emt 0:00:19]} 10. Nd5 {[%emt 0:00:04] 10.Nd5 is better than 10.0-0-0. B90: Sicilian Najdorf: Unusual White 6th moves, 6 Be3 Ng4 and 6 Be3 e5.} Bxd5 {[%emt 0:00:12]} 11. exd5 {[%emt 0:00:03]} g6 {[%emt 0:00:22]} 12. Be2 {[%emt 0:00:09] White is slightly better.} Bg7 {[%emt 0:00:16]} 13. O-O {[%emt 0:00:04]} b6 {[%emt 0:00:29] Against Na5} 14. c4 {[%emt 0:02:55]} O-O {[%emt 0:02:17]} 15. h3 {[%emt 0:00:06]} Re8 {[%emt 0:13:00]} 16. Rac1 {[%emt 0:00:14]} a5 {[%emt 0:01:30]} 17. Na1 {[%emt 0:00:57][%cal Bb3a1,Ba1c2,Bc2a3,Ba3b5][%mdl 32] [#]} Nh7 $146 {[%emt 0:04:28]} ({Predecessor:} 17... Kh7 18. Nc2 Ng8 19. Na3 Bh6 20. f4 f5 21. Nb5 Nc5 22. Bd3 Nf6 23. fxe5 Bxe3+ 24. Qxe3 Rxe5 {0-1 (41) Bocharov,I (2568)-Sjugirov,S (2661) Sochi 2019}) 18. Nc2 {[%emt 0:20:26]} h4 {[%emt 0:00:15]} 19. Na3 {[%emt 0:00:26]} Ndf6 {[%emt 0:01:00][%cal Bd7f6,Bf6h5,Bh5g3][%mdl 32]} 20. Bd1 {[%emt 0:00:59]} Nh5 {[%emt 0:02:30]} 21. Ba4 {[%emt 0:02:48]} Rf8 {[%emt 0:02:35]} 22. Rfe1 {[%emt 0:04:19]} Ng3 {[%emt 0:00:31]} 23. Qf2 {[%emt 0:01:23]} Rb8 {[%emt 0:00:44]} 24. Nb5 {[%emt 0:00:33]} Rb7 {[%emt 0:02:45] Inhibits Na7.} 25. a3 {[%emt 0:08:38]} f5 $1 {[%emt 0:02:01][%cal Bf7f5,Bf5f4][%mdl 32]} 26. b4 $2 {[%emt 0:00:19]} (26. Qd2 $11) 26... axb4 {[%emt 0:00:12]} ({Black should play} 26... f4 $17 27. Bd2 e4) 27. axb4 {[%emt 0:00:01]} (27. Bd2 $15) 27... f4 $17 {[%emt 0:01:55]} 28. Bd2 {[%emt 0:00:31]} e4 $1 {[%emt 0:00:51] aiming for ...Ng5.} 29. Bc3 {[%emt 0:02:37]} e3 {[%emt 0:04:43]} (29... exf3 $1 $17 30. Bxg7 (30. gxf3 Ng5 $17) 30... Rxg7 31. gxf3 (31. Qxf3 $2 Ng5 $19) 31... Ng5) 30. Qc2 $11 {[%emt 0:00:21]} Bxc3 {[%emt 0:01:36]} 31. Qxc3 {[%emt 0:03:41]} Ng5 {[%emt 0:03:08]} 32. Kh2 {[%emt 0:06:14]} (32. Ra1 $11) 32... Qf6 {[%emt 0:05:56]} ({Better is} 32... N5e4 $1 $17 {[%cal Re4c3]} 33. Qc2 (33. fxe4 Qg5 $17) 33... Qf6) 33. Qxf6 {[%emt 0:01:47]} Rxf6 {[%emt 0:00:07]} 34. c5 {[%emt 0:00:03]} (34. Ra1 $11) 34... bxc5 $17 {[%emt 0:00:46]} 35. bxc5 {[%emt 0:00:26]} dxc5 {[%emt 0:00:47]} 36. Rxc5 {[%emt 0:02:30]} Nf7 {[%emt 0:01:35] Against d6. 0x0.001f25c9a9acdp-1022s more active pieces.} 37. Rc6 {[%emt 0:00:25] [#]} Rb6 $1 {[%emt 0:01:44]} 38. Nc7 {[%emt 0:15:48] [#]} (38. Rc7 $17) 38... Ne5 $1 $19 {[%emt 0:06:06] Pair of Knights!} 39. Rxf6 {[%emt 0:08:44]} Rxf6 {[%emt 0:00:12]} 40. Rb1 $2 {[%emt 0:00:02]} (40. Ne6 Nd3 41. Ra1) 40... e2 {[%emt 0:07:14][%cal Of6b6] Threatens to win with ...Rb6!} 41. Bb5 {[%emt 0:20:39]} Rb6 {[%emt 0:00:22] And now ...Nd3 would win.} 42. Ra1 {[%emt 0:00:16]} Kf7 43. Ne8 {[%emt 0:00:05]} Nf5 {[%emt 0:06:00]} ({Wrong is} 43... Nf1+ $2 44. Kg1 Ne3 45. Re1 $19) 44. Ra7+ {[%emt 0:01:16]} (44. Nc7 $19) 44... Kf8 {[%emt 0:00:24]} 45. Bxe2 {[%emt 0:00:31]} Ng3 {[%emt 0:04:58]} (45... Rb1 $142 46. Ra4 g5 47. Rb4 Rxb4 48. Nf6 Ng3 49. Ne4 Rb1 50. Nf2 Nxe2 51. d6 Ng3 52. d7 Nxd7 53. Nd1 Ne5 54. Kg1 Rxd1+ 55. Kh2 Rh1#) 46. d6 {[%emt 0:00:30][%cal Oe8f6]} Rb1 {[%emt 0:00:19] Weighted Error Value: White=0.66/Black=0.22 (precise)} 0-1

[Event "87th Spanish Championship 2022"]
[Site "Linares"]
[Date "2022.08.12"]
[Round "2.5"]
[White "Perez Candelario, Manuel"]
[Black "Fernandez Lopez, Ruben"]
[Result "1-0"]
[ECO "B61"]
[WhiteElo "2578"]
[BlackElo "2324"]
[Annotator "TA"]
[PlyCount "101"]
[EventDate "2022.08.11"]
[EventType "swiss"]
[EventCountry "ESP"]
[SourceTitle "playchess.com"]
[Source "ChessBase"]
[SourceQuality "1"]
[TimeControl "5400+30"]

{[%evp 23,101,45,112,98,106,115,111,104,166,172,200,162,189,160,147,153,147,158,145,136,133,141,131,103,112,92,92,97,129,90,107,107,152,150,214,219,229,229,219,223,259,258,261,250,266,262,283,275,295,295,295,288,403,370,361,392,405,403,375,387,450,431,445,439,425,418,486,485,479,456,462,457,610,558,835,812,819,809,775,640]} 1. e4 {[%emt 0:00:31]} c5 {[%emt 0:00:05]} 2. Nf3 {[%emt 0:00:04]} d6 {[%emt 0:00:03]} 3. d4 {[%emt 0:00:03]} cxd4 {[%emt 0:00:06]} 4. Nxd4 {[%emt 0:00:04]} Nf6 {[%emt 0:00:03]} 5. Nc3 {[%emt 0:00:04]} Nc6 {[%emt 0:00:04]} 6. Bg5 {[%emt 0:00:35]} Bd7 {[%emt 0:00:18]} 7. Qd2 {[%emt 0:03:55]} Rc8 {[%emt 0:00:08]} 8. f4 {[%emt 0:03:16]} Nxd4 {[%emt 0:02:56]} 9. Qxd4 {[%emt 0:00:04]} Qa5 {[%emt 0:00:06]} 10. e5 {[%emt 0:09:14]} dxe5 {[%emt 0:00:09]} 11. fxe5 {[%emt 0:00:04]} e6 {[%emt 0:00:05]} 12. O-O-O {[%emt 0:00:55]} Rxc3 {[%emt 0:10:18]} 13. Bd2 $1 $16 {[%emt 0:11:58][%mdl 64] Pin. B61: Sicilian: Richter-Rauzer: 6...Bd7 7 Qd2.} (13. Qxc3 $6 Qxc3 14. bxc3 Ne4 $11) (13. bxc3 Bc5 14. Qd3 Nd5 $17) (13. Bxf6 $2 Rc7 14. Bh4 Qxa2 $19) 13... Qxa2 {[%emt 0:00:47][%cal Ra2a1]} 14. Bxc3 {[%emt 0:00:09]} g6 {[%emt 0:06:08] ( -> ...Bh6+)} 15. b4 $1 {[%emt 0:01:16] White is better.} Bh6+ {[%emt 0:00:35]} (15... Nd5 $16) 16. Bd2 $18 {[%emt 0:01:55] [#] Really sharp!} Bxd2+ $146 {[%emt 0:04:09]} (16... Ba4 $2 17. Bd3 (17. Bb5+ Bxb5 18. Bxh6 Nd5 $16) 17... Qa3+ 18. Qb2 (18. Kb1 Bxd2 19. Rxd2 Nd5 $11) 18... Bxd2+ 19. Rxd2 Qxb2+ 20. Kxb2 $18) ({Predecessor:} 16... Qa3+ 17. Qb2 Qxb2+ 18. Kxb2 Bxd2 19. Rxd2 Ng4 20. Re2 h5 21. h3 Nh6 22. g4 Bb5 {1-0 (55) Lorenzo de la Riva,L (2444)-Ladron de Guevara Pinto,P (2370) Barcelona 2012}) 17. Rxd2 {[%emt 0:00:51]} Nd5 {[%emt 0:03:13]} 18. Bc4 {[%emt 0:03:49]} Qa3+ {[%emt 0:00:04]} 19. Qb2 $1 {[%emt 0:02:47]} Qxb2+ {[%emt 0:00:33]} 20. Kxb2 {[%emt 0:00:05]} Nb6 {[%emt 0:00:08]} 21. Bb3 {[%emt 0:01:48]} Ke7 {[%emt 0:00:06]} 22. c4 {[%emt 0:02:26] Inhibits Bb5.} Rc8 {[%emt 0:02:29]} 23. Rc1 {[%emt 0:04:03]} Be8 {[%emt 0:02:15]} 24. g4 {[%emt 0:02:33]} Nd7 {[%emt 0:02:49]} 25. Re1 {[%emt 0:02:30]} a5 {[%emt 0:01:26]} 26. b5 {[%emt 0:05:54]} Rc5 {[%emt 0:00:42]} 27. Rde2 {[%emt 0:00:22] 0x0.0002d9ddcb8ddp-1022s more active pieces.} Nb6 {[%emt 0:01:34]} 28. Re4 $1 {[%emt 0:01:06]} h6 {[%emt 0:01:08] [#]} (28... Nd7 $16 29. g5 Nb6) 29. Ra1 $1 {[%emt 0:02:58]} a4 {[%emt 0:00:13]} 30. Ba2 {[%emt 0:00:11]} Nd7 {[%emt 0:00:36] [#]} 31. Rae1 $1 {[%emt 0:00:07]} Rc8 {[%emt 0:01:57]} 32. Ka3 {[%emt 0:00:56]} Nc5 {[%emt 0:01:09]} 33. Rd4 {[%emt 0:00:30]} Nd7 {[%emt 0:00:40]} 34. Re3 {[%emt 0:02:24]} ({Resist} 34. Kxa4 Ra8+ 35. Kb3 g5 $18) 34... Ra8 {[%emt 0:02:04]} 35. Bb1 {[%emt 0:01:08]} Nc5 {[%emt 0:01:13]} 36. Bc2 {[%emt 0:00:56]} Nd7 {[%emt 0:02:28]} 37. Bd1 {[%emt 0:02:08]} ({Less strong is} 37. Bxa4 Nc5 38. Kb4 Nxa4 $16) 37... Kf8 {[%emt 0:01:36]} 38. Bf3 {[%emt 0:03:45]} Nc5 {[%emt 0:00:17]} 39. Kb4 {[%emt 0:01:11]} Rc8 {[%emt 0:00:29]} 40. Bd1 {[%emt 0:01:35]} Ke7 {[%emt 0:02:14]} 41. Bxa4 {[%emt 0:01:42]} Nd7 {[%emt 0:02:13]} 42. Bd1 {[%emt 0:00:45]} b6 {[%emt 0:01:22]} 43. Bf3 {[%emt 0:02:14]} Rc5 {[%emt 0:00:05]} 44. Rde4 {[%emt 0:01:06]} g5 {[%emt 0:02:12]} 45. Re2 {[%emt 0:00:59] White is clearly winning.} Rc7 {[%emt 0:01:52]} 46. R4e3 {[%emt 0:00:17]} Nc5 {[%emt 0:00:44]} 47. Rd2 {[%emt 0:00:36]} Nd7 {[%emt 0:03:21]} 48. Ra2 {[%emt 0:00:50]} f6 {[%emt 0:00:44]} 49. exf6+ {[%emt 0:00:20]} Kxf6 {[%emt 0:00:36]} 50. Bc6 {[%emt 0:02:32]} Bf7 {[%emt 0:00:38]} 51. Ra6 {[%emt 0:01:30] Weighted Error Value: White=0.06 (flawless) /Black=0.23 (precise)} 1-0

[Event "87th Spanish Championship 2022"]
[Site "Linares"]
[Date "2022.08.12"]
[Round "2.6"]
[White "Alvarez Fernandez, Enrique"]
[Black "Cuenca Jimenez, Jose Fernando"]
[Result "0-1"]
[ECO "D37"]
[WhiteElo "2329"]
[BlackElo "2552"]
[Annotator "TA"]
[PlyCount "138"]
[EventDate "2022.08.11"]
[EventType "swiss"]
[EventCountry "ESP"]
[SourceTitle "playchess.com"]
[Source "ChessBase"]
[SourceQuality "1"]
[TimeControl "5400+30"]

{[%evp 11,138,15,18,6,11,5,14,7,11,-1,10,10,10,12,6,10,11,10,9,12,12,8,13,6,6,7,13,7,10,0,23,20,15,10,16,8,8,4,11,-18,-27,-28,-4,-22,-5,-4,0,0,0,-39,-39,-39,-39,-39,-39,-39,-39,-39,-39,-39,-39,-61,-61,-61,-61,-77,-77,-97,-97,-212,-212,-212,-77,-169,-122,-749,-760,-759,-530,-778,-715,-762,-698,-722,-659,-735,-709,-1500,-1893,-1012,-1554,-1233,-1558,-966,-1265,-1423,-1491,-3193,-2066,-1667,-897,-2236,-2194,-2043,-1689,-1653,-1594,-5206,-955,-29961,-29961,-6412,-6458,-29963,-29961,-29946,-5197,-29962,-29960,-29976,-29977,-29981,-29977,-29978,-29979,-29984,-29985,-29986,-29987]} 1. d4 {[%emt 0:00:03]} Nf6 {[%emt 0:00:10]} 2. Nf3 {[%emt 0:00:06]} d5 {[%emt 0:00:57]} 3. c4 {[%emt 0:01:37]} e6 {[%emt 0:00:15]} 4. Nc3 {[%emt 0:00:16]} Be7 {[%emt 0:00:24]} 5. Bf4 {[%emt 0:01:07]} O-O {[%emt 0:01:02]} 6. e3 {[%emt 0:00:24]} Nbd7 {[%emt 0:00:36]} 7. c5 {[%emt 0:01:05] D37: Queen's Gambit Declined: 5 Bf4.} c6 {[%emt 0:05:01]} 8. b4 {[%emt 0:02:19]} b6 {[%emt 0:05:07]} 9. Bd3 {[%emt 0:07:32] The position is equal. 9.h3 is not played anymore.} a5 {[%emt 0:00:36]} 10. a3 {[%emt 0:00:11]} Ba6 {[%emt 0:01:10]} 11. O-O {[%emt 0:01:43]} Qc8 {[%emt 0:01:59]} 12. h3 {[%emt 0:06:04]} Qb7 {[%emt 0:02:58]} 13. Qe2 {[%emt 0:06:12] Recently 13.Rb1 got a lot of attention.} Bxd3 {[%emt 0:04:36]} 14. Qxd3 {[%emt 0:00:03]} Ra7 {[%emt 0:06:21]} 15. Rfc1 {[%emt 0:12:51]} axb4 {[%emt 0:14:38]} 16. axb4 {[%emt 0:00:20]} Rfa8 {[%emt 0:00:28]} 17. Rab1 {[%emt 0:01:46]} b5 {[%emt 0:04:01]} 18. Nd2 {[%emt 0:01:35]} Bd8 {[%emt 0:05:02]} 19. Nb3 {[%emt 0:01:54]} Ra3 {[%emt 0:08:06]} 20. Qc2 {[%emt 0:01:33]} h6 {[%emt 0:04:25]} 21. Qb2 {[%emt 0:03:00][%cal Ob3a5]} R3a6 {[%emt 0:02:11] Inhibits Na5.} 22. Ra1 {[%emt 0:03:31]} Ne4 {[%emt 0:08:40] [#]} 23. Rxa6 $146 {[%emt 0:18:14]} ({Predecessor:} 23. Nd1 g5 24. Bh2 Ra4 25. f3 Nef6 26. Qc3 h5 27. Bg3 h4 28. Be1 Bc7 29. Na5 Bxa5 30. Rxa4 bxa4 31. bxa5 {1-0 (55) Koelle,T (2312)-Stork,O (2394) Magdeburg 2021}) 23... Rxa6 {[%emt 0:00:21]} 24. Nxe4 {[%emt 0:08:31]} dxe4 {[%emt 0:00:38]} 25. Be5 {[%emt 0:04:25]} Qa8 {[%emt 0:09:25]} 26. Ra1 {[%emt 0:04:38]} Rxa1+ {[%emt 0:00:15]} (26... Ra4 $5 {[%cal Rd7e5]}) 27. Nxa1 {[%emt 0:03:00]} Qa4 {[%emt 0:03:06]} 28. Nc2 {[%emt 0:00:24]} f6 {[%emt 0:00:44]} 29. Bd6 {[%emt 0:00:49][%cal Od4d5]} f5 {[%emt 0:00:37]} 30. Qa3 {[%emt 0:01:54]} Qxa3 {[%emt 0:07:59]} (30... Qxc2 $2 31. Qa8 Nf6 32. Qxd8+ Kh7 33. Be5 $18) 31. Nxa3 $15 {[%emt 0:00:01][%mdl 4096] Endgame KBN-KBN} Nf6 {[%emt 0:00:05]} 32. Nc2 {[%emt 0:00:17]} Nd5 {[%emt 0:00:09]} 33. Kf1 {[%emt 0:03:16]} Kf7 {[%emt 0:00:10]} 34. Ke2 {[%emt 0:00:25]} h5 {[%emt 0:01:35]} 35. f3 {[%emt 0:01:30]} Bh4 {[%emt 0:00:21]} 36. fxe4 {[%emt 0:00:19]} fxe4 {[%emt 0:00:08]} 37. g3 {[%emt 0:00:56]} Bf6 {[%emt 0:00:52]} 38. Bb8 {[%emt 0:02:36]} Kg6 {[%emt 0:00:06]} 39. Bd6 {[%emt 0:00:55]} Kf5 {[%emt 0:00:06]} 40. Bb8 {[%emt 0:00:53]} (40. Kd1 $17 {keeps fighting.}) 40... g5 $19 {[%emt 0:01:26]} 41. Bd6 {[%emt 0:00:36]} g4 {[%emt 0:00:42]} (41... e5 $19 {has better winning chances. Threatens to win with ...exd4.} 42. dxe5 Bxe5 43. Bxe5 Kxe5) 42. h4 {[%emt 0:00:19]} (42. hxg4+ $17 Kxg4 43. Kf2) 42... e5 {[%emt 0:01:25]} 43. Bb8 $2 {[%emt 0:00:57][%mdl 8192] This move loses the game for White.} (43. Bxe5 $17 Bxe5 44. dxe5 Kxe5 45. Kd2) 43... exd4 {[%emt 0:01:35]} 44. exd4 {[%emt 0:00:02]} Bg7 {[%emt 0:00:22] White must now prevent ...Ke6.} 45. Bd6 {[%emt 0:02:09]} Bh6 {[%emt 0:00:10]} 46. Be5 {[%emt 0:00:31]} Ke6 {[%emt 0:00:34]} 47. Bb8 {[%emt 0:00:39]} Bc1 {[%emt 0:01:49]} 48. Kd1 {[%emt 0:00:10]} Bb2 {[%emt 0:00:33]} 49. Bf4 {[%emt 0:00:43]} Nxf4 {[%emt 0:00:31]} 50. gxf4 {[%emt 0:00:05] KB-KN} Kf5 {[%emt 0:00:20]} 51. d5 {[%emt 0:00:21]} cxd5 {[%emt 0:00:06]} 52. c6 {[%emt 0:01:08]} Ke6 {[%emt 0:00:41] Hoping for ...g3.} 53. Ne3 {[%emt 0:00:28]} g3 {[%emt 0:00:46]} 54. Ke2 {[%emt 0:00:07]} Bd4 55. f5+ {[%emt 0:00:42]} Kd6 {[%emt 0:00:43]} 56. f6 {[%emt 0:00:13]} Kxc6 {[%emt 0:00:51] ( -> ...Bxe3)} 57. f7 {[%emt 0:00:23]} Bg7 {[%emt 0:00:12]} 58. Nf5 {[%emt 0:00:08]} Bf8 {[%emt 0:00:05]} 59. Nxg3 {[%emt 0:00:06]} Kd6 {[%emt 0:00:40]} 60. Nxh5 {[%emt 0:00:09]} Ke5 {[%emt 0:00:14]} 61. Ng3 {[%emt 0:00:58]} d4 {[%emt 0:00:29][%cal Bd5d4,Bd4d3][%mdl 32]} 62. h5 {[%emt 0:00:13]} Bh6 {[%emt 0:00:53]} 63. Nf1 {[%emt 0:00:16] [#]} d3+ $1 {[%emt 0:00:21]} 64. Kf2 {[%emt 0:00:33]} Kf6 {[%emt 0:01:05] Black mates.} 65. Ng3 {[%emt 0:00:28] [#]} e3+ $1 {[%emt 0:00:17]} 66. Kf3 {[%emt 0:00:58]} e2 {[%emt 0:00:32]} 67. Kf2 {[%emt 0:01:27]} Kxf7 {[%emt 0:00:04]} 68. Ne4 {[%emt 0:00:26]} Bf4 {[%emt 0:01:05]} ({Stronger than} 68... Bf8 69. Nc5 $11) 69. h6 {[%emt 0:00:58]} Kg6 {[%emt 0:00:32] Weighted Error Value: White=0.65/Black=0.20 (precise)} 0-1

[Event "87th Spanish Championship 2022"]
[Site "Linares"]
[Date "2022.08.12"]
[Round "2.7"]
[White "Asis Gargatagli, Hipolito"]
[Black "Lin, Yingrui"]
[Result "1/2-1/2"]
[ECO "B22"]
[WhiteElo "2514"]
[BlackElo "2314"]
[Annotator "TA"]
[PlyCount "58"]
[EventDate "2022.08.11"]
[EventType "swiss"]
[EventCountry "ESP"]
[SourceTitle "playchess.com"]
[Source "ChessBase"]
[SourceQuality "1"]
[TimeControl "5400+30"]

{[%evp 16,58,33,29,37,29,24,30,56,56,67,25,19,27,40,12,12,0,0,0,0,0,0,0,9,0,0,0,0,0,0,0,0,0,0,0,0,0,0,0,0,0,0,0,0]} 1. e4 {[%emt 0:00:05]} c5 {[%emt 0:00:08]} 2. c3 {[%emt 0:00:05]} Nf6 {[%emt 0:00:17]} 3. e5 {[%emt 0:00:06]} Nd5 {[%emt 0:00:07]} 4. Bc4 {[%emt 0:00:11]} Nb6 {[%emt 0:00:17]} 5. Bb3 {[%emt 0:00:05]} c4 {[%emt 0:00:24]} 6. Bc2 {[%emt 0:00:10]} Nc6 {[%emt 0:00:14]} 7. Nf3 {[%emt 0:00:09]} d6 {[%emt 0:00:16]} 8. exd6 {[%emt 0:00:09]} Qxd6 {[%emt 0:00:04]} 9. O-O {[%emt 0:00:10]} Bg4 {[%emt 0:00:13] B22: Sicilian: 2 c3.} 10. Re1 {[%emt 0:00:07] Inhibits Ne5. 10.Re1 scores better than 10.h3.} e6 {[%emt 0:00:21][%cal Oc6e5]} 11. b3 {[%emt 0:00:38]} cxb3 {[%emt 0:00:07] White has an edge.} 12. axb3 {[%emt 0:00:09]} Be7 {[%emt 0:01:54]} 13. Na3 {[%emt 0:01:27][%cal Bb1a3,Ba3c4,Bc4e3][%mdl 32]} Nd5 {[%emt 0:09:18]} 14. Nc4 {[%emt 0:05:17]} Qc7 {[%emt 0:00:31]} 15. Be4 {[%emt 0:24:58]} O-O {[%emt 0:17:01] The position is equal.} 16. Bxd5 {[%emt 0:07:12]} (16. Qe2 {feels hotter.} Rfd8 17. Bb2 Nf4 18. Qe3) 16... exd5 {[%emt 0:00:02]} 17. Ne3 {[%emt 0:00:08][%csl LRd5,LRg4]} Be6 {[%emt 0:02:37][%cal Od5d4]} 18. Ba3 {[%emt 0:00:37]} Bxa3 {[%emt 0:20:40]} 19. Rxa3 {[%emt 0:00:53]} Qd6 {[%emt 0:00:25] [#]} 20. Qa1 $146 {[%emt 0:09:10]} ({Predecessor:} 20. Ra4 Rfe8 21. Qc2 h6 22. Nd4 Bd7 23. Rea1 a6 24. Nxc6 Bxc6 25. Rg4 Qf6 26. f3 {½-½ (49) Cherniaev,A (2396)-Drygalov,S (2481) Ekaterinburg 2019}) 20... d4 {[%emt 0:09:55]} 21. Nxd4 {[%emt 0:14:42]} Nxd4 {[%emt 0:00:09]} 22. cxd4 {[%emt 0:00:04]} Rfd8 {[%emt 0:04:40]} 23. d5 {[%emt 0:19:55]} Bxd5 {[%emt 0:00:29]} 24. Nf5 $36 {[%emt 0:00:08][%csl Gf5][%cal Ra1g7][%mdl 2048] [#] White is pushing.} Qf6 {[%emt 0:02:08]} 25. Ne7+ {[%emt 0:08:02]} Kf8 $1 {[%emt 0:00:11] Strongly threatening ...Be6.} 26. Nxd5 {[%emt 0:00:08]} Qxa1 {[%emt 0:01:44]} 27. Rexa1 {[%emt 0:00:04][%cal Od5b6] Nb6! is the strong threat.} Rxd5 {[%emt 0:00:08]} 28. Rxa7 {[%emt 0:00:08]} Rxa7 {[%emt 0:00:31]} 29. Rxa7 {[%emt 0:00:05]} Rxd2 {[%emt 0:00:25] Weighted Error Value: White=0.06 (flawless) /Black=0.02 (flawless)} 1/2-1/2